Workbook

Sheet CT Data
C1: Author: Guy Schott, guy.schott@waterboards.ca.gov, 707-576-2732, updated 5/27/20
C2: CT Compliance for
C3: Cryptosporidium, Giardia Lamblia Cysts & Virus
C4: by Chlorine Dioxide Disinfection
C6: Input Parameters:
C7: Water System Name: | J7: Enter Name
C8: Number of Service Connections: | J8: Enter number
C9: System Number: | J9: Enter number
C10: Month and Year: | J10: 2020-07-01
C11: Clearwell(s) - Volume per Foot: | J11: 100000 | K11: Gallons/Ft
C12: Short-Circuiting Factor for Clearwell(s): | J12: 0.1 | K12: t10/T (baffling factor, BF)
C13: Transmission Pipe - Volume | J13: 5000 | K13: Gallons
C14: Short-Circuiting Factor for Transmission Pipe: | J14: 0.9 | K14: t10/T (baffling factor, BF)
D16: Data inputs should be based on when plant is on-line and flow leaving clearwell | AX16: =DATE(AX17,AY17,AY16) -> 2020-07-01 | AY16: 1
D17: Reactor Data for Peak Hourly Flow1 | H17: Ct10 Dose and Log Inactivation Results | I17: Ct10 Dose and Log Inactivation Results (pH: 6-9) | AX17: =YEAR(J10) -> 2020 | AY17: =MONTH($J$10) -> 7 | BH17: Virus Table for 4 log | CN17: Giardia
C18: Date | D18: Flow Rate (gpm) | E18: Tank Lowest Level (ft) | F18: Water Temp (oC) | G18: ClO2 Residual (mg/L) | H18: ClO2- Residual, mg/L | I18: Effective Volume (BF • Vol) (gallons) | J18: Effective Contact Time (minutes) | K18: Delivered Dose Ct10 (mg/L•min) | L18: Crypto Log Inactivation | M18: Giardia Log Inactivation | N18: Virus Log Inactivation | R18: Pipe Diameter inch | S18: Pipe Length ft | T18: Pipe Volume Calc. gal | AD18: Log Virus | AE18: CT Virus | AF18: 1 | AG18: 2 | AI18: 1-5, Log | AJ18: 1 | AK18: 2 | AM18: 5-20, Log | AN18: 1 | AO18: 2 | AQ18: 20-25, Log | BH18: 1 | BI18: 2 | BJ18: 3 | BK18: 4 | BL18: 5 | BM18: 6 | BN18: 7 | BO18: 8 | BP18: 9 | BQ18: 10 | BR18: 11 | BS18: 12 | BT18: 13 | BU18: 14 | BV18: 15 | BW18: 16 | BX18: 17 | BY18: 18 | BZ18: 19 | CA18: 20 | CB18: 21 | CC18: 22 | CD18: 23 | CE18: 24 | CF18: 25 | CI18: Required Log Inactivation: | CJ18: 0.5 | CK18: 3.5 | CN18: Log Inactivation
C19: =AX19&"-"&AY19 -> Wed-1 | D19: 1000 | E19: 5 | F19: 5 | G19: 0.7 | H19: 0.8 | I19: =IF(D19<=0,"-",$J$11*E19*$J$12+$J$13*$J$14) -> 54500 | J19: =IF(D19=0,"-",I19/(D19)) -> 54.5 | K19: =IF(OR($D19<=0,$G19<=0),"-",J19*G19) -> 38.15 | L19: =IF(OR($D19<=0,$G19<=0),"-", (0.001506*(1.09116^F19)*K19)) -> 0.08887133413 | M19: =IF(OR($D19<=0,$G19<=0),"-", IF(CN19>8,">8.0",CN19)) -> 4.375 | N19: =IF(OR($D19<=0,$G19<=0),"-",IF(K19>AE19,">4.0",IF(F19<=5,AI19,IF(F19<=20,AM19,AQ19)))) -> >4.0 | R19: 12 | S19: 400 | T19: =PI()*(R19/12)^2/4*S19*7.4805 -> 2350.068385 | AD19: =IF(OR($E19=0,$D19=0,$G19<=0),"-", 4*K19/AE19) -> 4.568862275 | AE19: =IF(F19<1,"-",HLOOKUP(F19,$BH$18:$CF$19,2)) -> 33.4 | AF19: =-0.00001929*F19^2-0.00000929*F19-0.000392 -> -0.0009207 | AG19: =0.00093714*F19^2+0.00328714*F19+0.068062 -> 0.1079262 | AH19: 1.4244 | AI19: =IF(D19<=0,"-",AF19*$K19^2+AG19*$K19+AH19) -> 4.201777034 | AJ19: =-0.00000004*F19^4+0.00000159*F19^3-0.00004328*F19^2+0.00030334*F19-0.00156149 -> -0.00095304 | AK19: =-0.00002*F19^3+0.001177*F19^2-0.007005*F19+0.117161 -> 0.109061 | AL19: 1.4248 | AM19: =IF(D19<=0,"-",AJ19*$K19^2+AK19*$K19+AL19) -> 4.198401291 | AN19: =-0.000171*F19^2+0.006151*F19-0.061302 -> -0.034822 | AO19: =0.002057*F19^2-0.065201*F19+0.770529 -> 0.495949 | AP19: 1.426585 | AQ19: =IF(D19<=0,"-",AN19*$K19^2+AO19*$K19+AP19) -> -30.33368295 | AX19: =IF(ISBLANK($AX$16),"",TEXT(AX16,"ddd")) -> Wed | AY19: 1 | BA19: 0.5 | BB19: 0.5 | BE19: =$BE$53 -> 11.43348624 | BF19: =$BF$53 -> - | BH19: 50.1 | BI19: 45.9 | BJ19: 41.8 | BK19: 37.6 | BL19: 33.4 | BM19: 31.7 | BN19: 30.1 | BO19: 28.4 | BP19: 26.8 | BQ19: 25.1 | BR19: 23.4 | BS19: 21.7 | BT19: 20.1 | BU19: 18.4 | BV19: 16.7 | BW19: 15.9 | BX19: 15 | BY19: 14.2 | BZ19: 13.3 | CA19: 12.5 | CB19: 11.7 | CC19: 10.9 | CD19: 10 | CE19: 9.2 | CF19: 8.4 | CN19: =IF(OR($D19=0,$G19<=0),"-",IF(F19<=5,K19/(-3.07*F19+24.07),K19/(-0.2561*F19+10.137))) -> 4.375
C20: Sun-2 | D20: 200 | E20: 6 | F20: 5 | G20: 0.5 | H20: 0.6 | I20: =IF(D20<=0,"-",$J$11*E20*$J$12+$J$13*$J$14) -> 64500 | J20: =IF(D20=0,"-",I20/(D20)) -> 322.5 | K20: =IF(OR($D20<=0,$G20<=0),"-",J20*G20) -> 161.25 | L20: =IF(OR($D20<=0,$G20<=0),"-", (0.001506*(1.09116^F20)*K20)) -> 0.3756357177 | M20: =IF(OR($D20<=0,$G20<=0),"-", IF(CN20>8,">8.0",CN20)) -> >8.0 | N20: =IF(OR($D20<=0,$G20<=0),"-",IF(K20>AE20,">4.0",IF(F20<=5,AI20,IF(F20<=20,AM20,AQ20)))) -> >4.0 | AD20: =IF(OR($E20=0,$D20=0,$G20<=0),"-", 4*K20/AE20) -> 19.31137725 | AE20: 33.4 | AF20: -0.0009207 | AG20: 0.1079262 | AH20: 1.4244 | AI20: -5.112138844 | AJ20: -0.00095304 | AK20: 0.109061 | AL20: 1.4248 | AM20: -5.769642875 | AN20: -0.034822 | AO20: 0.495949 | AP20: 1.426585 | AQ20: -824.0280481 | AX20: =IF(ISBLANK($AX$16),"",TEXT($AVN$16+AY19,"ddd")) -> Sun | AY20: 2 | BA20: 1 | BB20: 1 | BE20: 11.43348624 | BF20: - | CN20: =IF(OR($D20=0,$G20<=0),"-",IF(F20<=5,K20/(-3.07*F20+24.07),K20/(-0.2561*F20+10.137))) -> 18.49197248
C21: Mon-3 | I21: - | J21: - | K21: - | L21: - | M21: - | N21: - | AD21: - | AE21: - | AF21: -0.000392 | AG21: 0.068062 | AH21: 1.4244 | AI21: - | AJ21: -0.00156149 | AK21: 0.117161 | AL21: 1.4248 | AM21: - | AN21: -0.061302 | AO21: 0.770529 | AP21: 1.426585 | AQ21: - | AX21: =IF(ISBLANK($AX$16),"",TEXT($AVN$16+AY20,"ddd")) -> Mon | AY21: =AY20+1 -> 3 | BA21: 1.5 | BB21: 1.5 | BE21: 11.43348624 | BF21: - | BH21: Temp | BI21: 2 | BJ21: 3 | BK21: 4 | CN21: -
C22: Tue-4 | I22: - | J22: - | K22: - | L22: - | M22: - | N22: - | AD22: - | AE22: - | AF22: -0.000392 | AG22: 0.068062 | AH22: 1.4244 | AI22: - | AJ22: -0.00156149 | AK22: 0.117161 | AL22: 1.4248 | AM22: - | AN22: -0.061302 | AO22: 0.770529 | AP22: 1.426585 | AQ22: - | AX22: Tue | AY22: =AY21+1 -> 4 | BA22: 2 | BB22: 2 | BE22: 11.43348624 | BF22: - | BH22: 1 | BI22: 8.4 | BJ22: 25.6 | BK22: 50.1 | CN22: -
C23: Wed-5 | I23: - | J23: - | K23: - | L23: - | M23: - | N23: - | AD23: - | AE23: - | AF23: -0.000392 | AG23: 0.068062 | AH23: 1.4244 | AI23: - | AJ23: -0.00156149 | AK23: 0.117161 | AL23: 1.4248 | AM23: - | AN23: -0.061302 | AO23: 0.770529 | AP23: 1.426585 | AQ23: - | AX23: Wed | AY23: 5 | BA23: 2.5 | BB23: 2.5 | BE23: 11.43348624 | BF23: - | BH23: 2 | BI23: 7.7 | BJ23: 23.5 | BK23: 45.9 | CN23: -
C24: Thu-6 | I24: - | J24: - | K24: - | L24: - | M24: - | N24: - | AD24: - | AE24: - | AF24: -0.000392 | AG24: 0.068062 | AH24: 1.4244 | AI24: - | AJ24: -0.00156149 | AK24: 0.117161 | AL24: 1.4248 | AM24: - | AN24: -0.061302 | AO24: 0.770529 | AP24: 1.426585 | AQ24: - | AX24: Thu | AY24: 6 | BA24: 3 | BB24: 3 | BE24: 11.43348624 | BF24: - | BH24: 3 | BI24: 7 | BJ24: 21.4 | BK24: 41.8 | CN24: -
C25: Fri-7 | I25: - | J25: - | K25: - | L25: - | M25: - | N25: - | AD25: - | AE25: - | AF25: -0.000392 | AG25: 0.068062 | AH25: 1.4244 | AI25: - | AJ25: -0.00156149 | AK25: 0.117161 | AL25: 1.4248 | AM25: - | AN25: -0.061302 | AO25: 0.770529 | AP25: 1.426585 | AQ25: - | AX25: Fri | AY25: 7 | BB25: 3.5 | BE25: 11.43348624 | BF25: - | BH25: 4 | BI25: 6.3 | BJ25: 19.2 | BK25: 37.6 | CN25: -
C26: Sat-8 | I26: - | J26: - | K26: - | L26: - | M26: - | N26: - | AD26: - | AE26: - | AF26: -0.000392 | AG26: 0.068062 | AH26: 1.4244 | AI26: - | AJ26: -0.00156149 | AK26: 0.117161 | AL26: 1.4248 | AM26: - | AN26: -0.061302 | AO26: 0.770529 | AP26: 1.426585 | AQ26: - | AX26: Sat | AY26: 8 | BB26: 4 | BE26: 11.43348624 | BF26: - | BH26: 5 | BI26: 5.6 | BJ26: 17.1 | BK26: 33.4 | CN26: -
C27: =AX27&"-"&AY27 -> Sun-9 | I27: - | J27: - | K27: - | L27: - | M27: - | N27: - | AD27: - | AE27: - | AF27: -0.000392 | AG27: 0.068062 | AH27: 1.4244 | AI27: - | AJ27: -0.00156149 | AK27: 0.117161 | AL27: 1.4248 | AM27: - | AN27: -0.061302 | AO27: 0.770529 | AP27: 1.426585 | AQ27: - | AX27: Sun | AY27: =AY26+1 -> 9 | BE27: 11.43348624 | BF27: - | BH27: 6 | BI27: 5.3 | BJ27: 16.2 | BK27: 31.7 | CN27: -
C28: Mon-10 | I28: - | J28: - | K28: - | L28: - | M28: - | N28: - | AD28: - | AE28: - | AF28: -0.000392 | AG28: 0.068062 | AH28: 1.4244 | AI28: - | AJ28: -0.00156149 | AK28: 0.117161 | AL28: 1.4248 | AM28: - | AN28: -0.061302 | AO28: 0.770529 | AP28: 1.426585 | AQ28: - | AX28: Mon | AY28: 10 | BE28: 11.43348624 | BF28: - | BH28: 7 | BI28: 5 | BJ28: 15.4 | BK28: 30.1 | CN28: -
C29: Tue-11 | I29: - | J29: - | K29: - | L29: - | M29: - | N29: - | AD29: - | AE29: - | AF29: -0.000392 | AG29: 0.068062 | AH29: 1.4244 | AI29: - | AJ29: -0.00156149 | AK29: 0.117161 | AL29: 1.4248 | AM29: - | AN29: -0.061302 | AO29: 0.770529 | AP29: 1.426585 | AQ29: - | AX29: Tue | AY29: 11 | BE29: 11.43348624 | BF29: - | BH29: 8 | BI29: 4.8 | BJ29: 14.5 | BK29: 28.4 | CN29: -
C30: Wed-12 | I30: - | J30: - | K30: - | L30: - | M30: - | N30: - | AD30: - | AE30: - | AF30: -0.000392 | AG30: 0.068062 | AH30: 1.4244 | AI30: - | AJ30: -0.00156149 | AK30: 0.117161 | AL30: 1.4248 | AM30: - | AN30: -0.061302 | AO30: 0.770529 | AP30: 1.426585 | AQ30: - | AX30: Wed | AY30: 12 | BE30: 11.43348624 | BF30: - | BH30: 9 | BI30: 4.5 | BJ30: 13.7 | BK30: 26.8 | CN30: -
C31: Thu-13 | I31: - | J31: - | K31: - | L31: - | M31: - | N31: - | AD31: - | AE31: - | AF31: -0.000392 | AG31: 0.068062 | AH31: 1.4244 | AI31: - | AJ31: -0.00156149 | AK31: 0.117161 | AL31: 1.4248 | AM31: - | AN31: -0.061302 | AO31: 0.770529 | AP31: 1.426585 | AQ31: - | AX31: Thu | AY31: 13 | BE31: 11.43348624 | BF31: - | BH31: 10 | BI31: 4.2 | BJ31: 12.8 | BK31: 25.1 | CN31: -
C32: Fri-14 | I32: - | J32: - | K32: - | L32: - | M32: - | N32: - | AD32: - | AE32: - | AF32: -0.000392 | AG32: 0.068062 | AH32: 1.4244 | AI32: - | AJ32: -0.00156149 | AK32: 0.117161 | AL32: 1.4248 | AM32: - | AN32: -0.061302 | AO32: 0.770529 | AP32: 1.426585 | AQ32: - | AX32: Fri | AY32: 14 | BE32: 11.43348624 | BF32: - | BH32: 11 | BI32: 3.9 | BJ32: 12 | BK32: 23.4 | CN32: -
C33: Sat-15 | I33: - | J33: - | K33: - | L33: - | M33: - | N33: - | AD33: - | AE33: - | AF33: -0.000392 | AG33: 0.068062 | AH33: 1.4244 | AI33: - | AJ33: -0.00156149 | AK33: 0.117161 | AL33: 1.4248 | AM33: - | AN33: -0.061302 | AO33: 0.770529 | AP33: 1.426585 | AQ33: - | AX33: Sat | AY33: 15 | BE33: 11.43348624 | BF33: - | BH33: 12 | BI33: 3.6 | BJ33: 11.1 | BK33: 21.7 | CN33: -
C34: Sun-16 | I34: - | J34: - | K34: - | L34: - | M34: - | N34: - | AD34: - | AE34: - | AF34: -0.000392 | AG34: 0.068062 | AH34: 1.4244 | AI34: - | AJ34: -0.00156149 | AK34: 0.117161 | AL34: 1.4248 | AM34: - | AN34: -0.061302 | AO34: 0.770529 | AP34: 1.426585 | AQ34: - | AX34: Sun | AY34: 16 | BE34: 11.43348624 | BF34: - | BH34: 13 | BI34: 3.4 | BJ34: 10.3 | BK34: 20.1 | CN34: -
C35: Mon-17 | I35: - | J35: - | K35: - | L35: - | M35: - | N35: - | AD35: - | AE35: - | AF35: -0.000392 | AG35: 0.068062 | AH35: 1.4244 | AI35: - | AJ35: -0.00156149 | AK35: 0.117161 | AL35: 1.4248 | AM35: - | AN35: -0.061302 | AO35: 0.770529 | AP35: 1.426585 | AQ35: - | AX35: Mon | AY35: 17 | BE35: 11.43348624 | BF35: - | BH35: 14 | BI35: 3.1 | BJ35: 9.4 | BK35: 18.4 | CN35: -
C36: Tue-18 | I36: - | J36: - | K36: - | L36: - | M36: - | N36: - | AD36: - | AE36: - | AF36: -0.000392 | AG36: 0.068062 | AH36: 1.4244 | AI36: - | AJ36: -0.00156149 | AK36: 0.117161 | AL36: 1.4248 | AM36: - | AN36: -0.061302 | AO36: 0.770529 | AP36: 1.426585 | AQ36: - | AX36: Tue | AY36: 18 | BE36: 11.43348624 | BF36: - | BH36: 15 | BI36: 2.8 | BJ36: 8.6 | BK36: 16.7 | CN36: -
C37: Wed-19 | I37: - | J37: - | K37: - | L37: - | M37: - | N37: - | AD37: - | AE37: - | AF37: -0.000392 | AG37: 0.068062 | AH37: 1.4244 | AI37: - | AJ37: -0.00156149 | AK37: 0.117161 | AL37: 1.4248 | AM37: - | AN37: -0.061302 | AO37: 0.770529 | AP37: 1.426585 | AQ37: - | AX37: Wed | AY37: 19 | BE37: 11.43348624 | BF37: - | BH37: 16 | BI37: 2.7 | BJ37: 8.2 | BK37: 15.9 | CN37: -
C38: Thu-20 | I38: - | J38: - | K38: - | L38: - | M38: - | N38: - | AD38: - | AE38: - | AF38: -0.000392 | AG38: 0.068062 | AH38: 1.4244 | AI38: - | AJ38: -0.00156149 | AK38: 0.117161 | AL38: 1.4248 | AM38: - | AN38: -0.061302 | AO38: 0.770529 | AP38: 1.426585 | AQ38: - | AX38: Thu | AY38: 20 | BE38: 11.43348624 | BF38: - | BH38: 17 | BI38: 2.5 | BJ38: 7.7 | BK38: 15 | CN38: -
C39: Fri-21 | I39: - | J39: - | K39: - | L39: - | M39: - | N39: - | AD39: - | AE39: - | AF39: -0.000392 | AG39: 0.068062 | AH39: 1.4244 | AI39: - | AJ39: -0.00156149 | AK39: 0.117161 | AL39: 1.4248 | AM39: - | AN39: -0.061302 | AO39: 0.770529 | AP39: 1.426585 | AQ39: - | AX39: Fri | AY39: 21 | BE39: 11.43348624 | BF39: - | BH39: 18 | BI39: 2.4 | BJ39: 7.3 | BK39: 14.2 | CN39: -
C40: Sat-22 | I40: - | J40: - | K40: - | L40: - | M40: - | N40: - | AD40: - | AE40: - | AF40: -0.000392 | AG40: 0.068062 | AH40: 1.4244 | AI40: - | AJ40: -0.00156149 | AK40: 0.117161 | AL40: 1.4248 | AM40: - | AN40: -0.061302 | AO40: 0.770529 | AP40: 1.426585 | AQ40: - | AX40: Sat | AY40: 22 | BE40: 11.43348624 | BF40: - | BH40: 19 | BI40: 2.2 | BJ40: 6.8 | BK40: 13.3 | CN40: -
C41: Sun-23 | I41: - | J41: - | K41: - | L41: - | M41: - | N41: - | AD41: - | AE41: - | AF41: -0.000392 | AG41: 0.068062 | AH41: 1.4244 | AI41: - | AJ41: -0.00156149 | AK41: 0.117161 | AL41: 1.4248 | AM41: - | AN41: -0.061302 | AO41: 0.770529 | AP41: 1.426585 | AQ41: - | AX41: Sun | AY41: 23 | BE41: 11.43348624 | BF41: - | BH41: 20 | BI41: 2.1 | BJ41: 6.4 | BK41: 12.5 | CN41: -
C42: Mon-24 | I42: - | J42: - | K42: - | L42: - | M42: - | N42: - | AD42: - | AE42: - | AF42: -0.000392 | AG42: 0.068062 | AH42: 1.4244 | AI42: - | AJ42: -0.00156149 | AK42: 0.117161 | AL42: 1.4248 | AM42: - | AN42: -0.061302 | AO42: 0.770529 | AP42: 1.426585 | AQ42: - | AX42: Mon | AY42: 24 | BE42: 11.43348624 | BF42: - | BH42: 21 | BI42: 2 | BJ42: 6 | BK42: 11.7 | CN42: -
C43: Tue-25 | I43: - | J43: - | K43: - | L43: - | M43: - | N43: - | AD43: - | AE43: - | AF43: -0.000392 | AG43: 0.068062 | AH43: 1.4244 | AI43: - | AJ43: -0.00156149 | AK43: 0.117161 | AL43: 1.4248 | AM43: - | AN43: -0.061302 | AO43: 0.770529 | AP43: 1.426585 | AQ43: - | AX43: Tue | AY43: 25 | BE43: 11.43348624 | BF43: - | BH43: 22 | BI43: 1.8 | BJ43: 5.6 | BK43: 10.9 | CN43: -
C44: Wed-26 | I44: - | J44: - | K44: - | L44: - | M44: - | N44: - | AD44: - | AE44: - | AF44: -0.000392 | AG44: 0.068062 | AH44: 1.4244 | AI44: - | AJ44: -0.00156149 | AK44: 0.117161 | AL44: 1.4248 | AM44: - | AN44: -0.061302 | AO44: 0.770529 | AP44: 1.426585 | AQ44: - | AX44: Wed | AY44: 26 | BE44: 11.43348624 | BF44: - | BH44: 23 | BI44: 1.7 | BJ44: 5.1 | BK44: 10 | CN44: -
C45: Thu-27 | I45: - | J45: - | K45: - | L45: - | M45: - | N45: - | AD45: - | AE45: - | AF45: -0.000392 | AG45: 0.068062 | AH45: 1.4244 | AI45: - | AJ45: -0.00156149 | AK45: 0.117161 | AL45: 1.4248 | AM45: - | AN45: -0.061302 | AO45: 0.770529 | AP45: 1.426585 | AQ45: - | AX45: Thu | AY45: 27 | BE45: 11.43348624 | BF45: - | BH45: 24 | BI45: 1.5 | BJ45: 4.7 | BK45: 9.2 | CN45: -
C46: Fri-28 | I46: - | J46: - | K46: - | L46: - | M46: - | N46: - | AD46: - | AE46: - | AF46: -0.000392 | AG46: 0.068062 | AH46: 1.4244 | AI46: - | AJ46: -0.00156149 | AK46: 0.117161 | AL46: 1.4248 | AM46: - | AN46: -0.061302 | AO46: 0.770529 | AP46: 1.426585 | AQ46: - | AX46: Fri | AY46: 28 | BE46: 11.43348624 | BF46: - | BH46: 25 | BI46: 1.4 | BJ46: 4.3 | BK46: 8.4 | CN46: -
C47: Sat-29 | I47: - | J47: - | K47: - | L47: - | M47: - | N47: - | AD47: - | AE47: - | AF47: -0.000392 | AG47: 0.068062 | AH47: 1.4244 | AI47: - | AJ47: -0.00156149 | AK47: 0.117161 | AL47: 1.4248 | AM47: - | AN47: -0.061302 | AO47: 0.770529 | AP47: 1.426585 | AQ47: - | AX47: Sat | AY47: 29 | BE47: 11.43348624 | BF47: - | CN47: -
C48: Sun-30 | I48: - | J48: - | K48: - | L48: - | M48: - | N48: - | AD48: - | AE48: - | AF48: -0.000392 | AG48: 0.068062 | AH48: 1.4244 | AI48: - | AJ48: -0.00156149 | AK48: 0.117161 | AL48: 1.4248 | AM48: - | AN48: -0.061302 | AO48: 0.770529 | AP48: 1.426585 | AQ48: - | AX48: Sun | AY48: 30 | BE48: 11.43348624 | BF48: - | CN48: -
C49: Mon-31 | I49: - | J49: - | K49: - | L49: - | M49: - | N49: - | AD49: - | AE49: - | AF49: -0.000392 | AG49: 0.068062 | AH49: 1.4244 | AI49: - | AJ49: -0.00156149 | AK49: 0.117161 | AL49: 1.4248 | AM49: - | AN49: -0.061302 | AO49: 0.770529 | AP49: 1.426585 | AQ49: - | AX49: Mon | AY49: 31 | BE49: 11.43348624 | BF49: - | CN49: -
C50: Min | D50: =MIN(D19:D49) -> 200 | E50: 5 | F50: 5 | G50: 0.5 | H50: 0.6 | I50: 54500 | J50: 54.5 | K50: =MIN(K19:K49) -> 38.15 | L50: =MIN(L19:L49) -> 0.08887133413 | M50: =MIN(M19:M49) -> 4.375 | N50: =IF(AND(MIN(N19:N49) = 0,N51=">4.0"),">4.0",MIN(N19:N49)) -> >4.0 | CN50: =MIN(CN19:CN49) -> 4.375
C51: Median | D51: =IF(SUM(D19:D49)<=0,0,MEDIAN(D19:D49)) -> 600 | E51: =IF(SUM(E19:E49)<=0,0,MEDIAN(E19:E49)) -> 5.5 | F51: =IF(SUM(F19:F49)<=0,0,MEDIAN(F19:F49)) -> 5 | G51: =IF(SUM(G19:G49)<=0,0,MEDIAN(G19:G49)) -> 0.6 | H51: =IF(SUM(H19:H49)<=0,0,MEDIAN(H19:H49)) -> 0.7 | I51: =IF(SUM(I19:I49)<=0,0,MEDIAN(I19:I49)) -> 59500 | J51: =IF(SUM(J19:J49)<=0,0,MEDIAN(J19:J49)) -> 188.5 | K51: 99.7 | L51: =IF(SUM(L19:L49)<=0,"-",MEDIAN(L19:L49)) -> 0.2322535259 | M51: =IF(SUM(M19:M49)<=0,"-",MEDIAN(M19:M49)) -> 4.375 | N51: =IF(SUM(AD19:AD49)<=0,"-",IF(MEDIAN(AD19:AD49)>4,">4.0",MEDIAN(AD19:AD49))) -> >4.0 | CN51: =IF(SUM(CN19:CN49)<=0,0,MEDIAN(CN19:CN49)) -> 11.43348624
C52: Max | D52: =MAX(D19:D49) -> 1000 | E52: =MAX(E19:E49) -> 6 | F52: =MAX(F19:F49) -> 5 | G52: =MAX(G19:G49) -> 0.7 | H52: =MAX(H19:H49) -> 0.8 | I52: =MAX(I19:I49) -> 64500 | J52: =MAX(J19:J49) -> 322.5 | K52: 161.25 | L52: =MAX(L19:L49) -> 0.3756357177 | M52: =IF(MAX(CN19:CN49)>8,">8.0",MAX(CN18:CN49)) -> >8.0 | N52: =IF(MAX(AD19:AD49)>4,">4.0",MAX(AD19:AD49)) -> >4.0 | CN52: =MAX(CN19:CN49) -> 18.49197248
BD53: Average: | BE53: =IF(SUM(CN19:CN49)=0,"-",AVERAGE(CN19:CN49)) -> 11.43348624 | BF53: =IF(SUM(N19:N49)=0,"-",AVERAGE(N19:N49)) -> -
C55: Print Name: | M55: Certification Grade: | N55: 5
C56: Signature: | K56: Date: | L56: 2020-06-06
C58: 1 Note: If flow is approximately constant over a 24 hour period,
C59: then use maximum pH value and lowest chlorine residual and temperature values.
